[Event "European Women Rapid-ch 2023"]
[Site "Monaco"]
[Date "2024.01.14"]
[Round "6.1"]
[White "Batsiashvili, Nino"]
[Black "Kosteniuk, Alexandra"]
[Result "0-1"]
[ECO "D56"]
[WhiteElo "2451"]
[BlackElo "2501"]
[Annotator "RC"]
[PlyCount "58"]
[EventDate "2023.12.19"]
[EventType "swiss"]
[EventCountry "MNC"]
[SourceTitle "playchess.com"]
[Source "ChessBase"]
[SourceQuality "1"]
[TimeControl "900+10"]

1. d4 {[%emt 0:00:02]} Nf6 {[%emt 0:00:01]} 2. c4 {[%emt 0:00:02]} e6 {[%emt 0:00:01]} 3. Nf3 {[%emt 0:00:04]} d5 {[%emt 0:00:02]} 4. Nc3 {[%emt 0:00:06]} Bb4 {[%emt 0:00:01]} 5. Bg5 {[%emt 0:00:16]} h6 {[%emt 0:00:02]} 6. Bxf6 {[%emt 0:00:02]} Qxf6 {[%emt 0:00:02]} 7. e3 {[%emt 0:00:07]} O-O {[%emt 0:00:15]} 8. Rc1 {[%emt 0:00:10]} Nc6 {[%emt 0:00:25]} 9. Be2 {[%emt 0:01:51]} dxc4 {[%emt 0:00:29]} 10. O-O {[%emt 0:00:02]} Bxc3 {[%emt 0:00:33]} 11. Rxc3 {[%emt 0:00:15]} e5 {[%emt 0:00:02]} 12. dxe5 {[%emt 0:01:25]} Nxe5 {[%emt 0:00:03]} 13. Nxe5 {[%emt 0:00:01]} Qxe5 {[%emt 0:00:02]} 14. Bxc4 {[%emt 0:00:03]} c6 {[%emt 0:00:51]} 15. f4 {[%emt 0:02:47]} Qe4 {[%emt 0:00:36]} 16. Bd3 {[%emt 0:01:19]} Qxe3+ {[%emt 0:00:23]} 17. Kh1 {[%emt 0:00:01]} Qe7 {[%emt 0:00:26]} 18. f5 {[%emt 0:00:03]} Qf6 {[%emt 0:00:03]} 19. Qb3 {[%emt 0:00:54]} Re8 {[%emt 0:00:47]} 20. Bb1 {[%emt 0:02:14]} Be6 {[%emt 0:01:16]} 21. Qxb7 {[%emt 0:00:38]} Bd5 {[%emt 0:00:01]} 22. Qa6 {[%emt 0:00:29]} Rab8 {[%emt 0:00:06]} 23. Rg3 {[%emt 0:04:15]} Rxb2 {[%emt 0:00:05]} 24. Bd3 {[%emt 0:00:08]} Rxa2 {[%emt 0:00:06]} 25. Qb7 {[%emt 0:00:01]} Ra1 {[%emt 0:01:54]} 26. Bb1 {[%emt 0:01:54]} Qxf5 {[%emt 0:00:59]} 27. Rg1 {[%emt 0:00:09]} Qe5 {[%emt 0:00:22]} 28. Qb4 {[%emt 0:00:13]} Rb8 {[%emt 0:00:11]} 29. Qg4 {[%emt 0:00:17]} Raxb1 {[%emt 0:00:11]} 0-1

[Event "European Women Rapid-ch 2023"]
[Site "Monaco"]
[Date "2024.01.14"]
[Round "6.2"]
[White "Khademalsharieh, Sarasadat"]
[Black "Osmak, Yuliia"]
[Result "0-1"]
[ECO "E51"]
[WhiteElo "2486"]
[BlackElo "2450"]
[Annotator "RC"]
[PlyCount "96"]
[EventDate "2023.12.19"]
[EventType "swiss"]
[EventCountry "MNC"]
[SourceTitle "playchess.com"]
[Source "ChessBase"]
[SourceQuality "1"]
[TimeControl "900+10"]

1. d4 {[%emt 0:00:03]} Nf6 {[%emt 0:01:43]} 2. c4 {[%emt 0:00:06]} e6 {[%emt 0:00:01]} 3. Nc3 {[%emt 0:00:04]} Bb4 {[%emt 0:00:01]} 4. e3 {[%emt 0:00:05]} O-O {[%emt 0:00:02]} 5. Bd2 {[%emt 0:00:22]} d5 {[%emt 0:00:06]} 6. Nf3 {[%emt 0:00:04]} b6 {[%emt 0:00:10]} 7. Rc1 {[%emt 0:00:07]} Bb7 {[%emt 0:00:33]} 8. cxd5 {[%emt 0:00:08]} exd5 {[%emt 0:00:02]} 9. Bd3 {[%emt 0:00:02]} Re8 {[%emt 0:00:05]} 10. O-O {[%emt 0:00:04]} Bf8 {[%emt 0:00:03]} 11. Ne5 {[%emt 0:00:14]} c5 {[%emt 0:00:02]} 12. f4 {[%emt 0:00:03]} Nc6 {[%emt 0:00:09]} 13. Ne2 {[%emt 0:00:02]} Rc8 {[%emt 0:01:15]} 14. Be1 {[%emt 0:00:27]} Ne4 {[%emt 0:00:34]} 15. Bxe4 {[%emt 0:03:16]} dxe4 {[%emt 0:00:02]} 16. Nxf7 {[%emt 0:01:23]} Kxf7 {[%emt 0:00:43]} 17. Qb3+ {[%emt 0:00:01]} Kg6 {[%emt 0:00:01]} 18. f5+ {[%emt 0:01:27]} Kh6 {[%emt 0:00:05]} 19. Nf4 {[%emt 0:00:23]} Qf6 {[%emt 0:03:14]} 20. Qd1 {[%emt 0:02:00]} g6 {[%emt 0:01:13]} 21. fxg6 {[%emt 0:03:03]} hxg6 {[%emt 0:00:01]} 22. Qg4 {[%emt 0:00:08]} Qf5 {[%emt 0:02:36]} 23. Qh4+ {[%emt 0:00:10]} Kg7 {[%emt 0:00:01]} 24. g4 {[%emt 0:02:10]} Be7 {[%emt 0:00:58]} 25. Qxe7+ {[%emt 0:00:02]} Nxe7 {[%emt 0:00:12]} 26. gxf5 {[%emt 0:00:01]} Nxf5 {[%emt 0:00:02]} 27. dxc5 {[%emt 0:00:12]} Rxc5 {[%emt 0:00:18]} 28. Rxc5 {[%emt 0:00:10]} bxc5 {[%emt 0:00:01]} 29. Bc3+ {[%emt 0:00:01]} Kh6 {[%emt 0:00:17]} 30. Rd1 {[%emt 0:00:13]} Nxe3 {[%emt 0:01:04]} 31. Rd6 {[%emt 0:00:37]} Rg8 {[%emt 0:00:59]} 32. Rd7 {[%emt 0:00:37]} Bc8 {[%emt 0:00:12]} 33. Rxa7 {[%emt 0:00:02]} Kg5 {[%emt 0:00:29]} 34. Rf7 {[%emt 0:00:12]} Bf5 {[%emt 0:00:09]} 35. Ne2 {[%emt 0:01:22]} Kg4 {[%emt 0:00:14]} 36. Be5 {[%emt 0:00:26]} Kf3 {[%emt 0:00:22]} 37. Nc3 {[%emt 0:00:41]} Rd8 {[%emt 0:00:23]} 38. h4 {[%emt 0:00:06]} Rd2 {[%emt 0:00:08]} 39. Bg7 {[%emt 0:00:40]} Rg2+ {[%emt 0:00:32]} 40. Kh1 {[%emt 0:00:01]} Ng4 {[%emt 0:00:20]} 41. Nxe4 {[%emt 0:00:06]} Rh2+ {[%emt 0:00:17]} 42. Kg1 {[%emt 0:00:02]} Kxe4 {[%emt 0:00:05]} 43. Rb7 {[%emt 0:00:07]} c4 {[%emt 0:00:32]} 44. Ra7 {[%emt 0:00:13]} Kf3 {[%emt 0:00:15]} 45. Ra3+ {[%emt 0:00:01]} Bd3 {[%emt 0:00:02]} 46. Bd4 {[%emt 0:00:04]} Rg2+ {[%emt 0:00:20]} 47. Kh1 {[%emt 0:00:01]} Nf2+ {[%emt 0:00:11]} 48. Bxf2 {[%emt 0:00:02]} Rxf2 {[%emt 0:00:03]} 0-1

[Event "European Women Rapid-ch 2023"]
[Site "Monaco"]
[Date "2024.01.14"]
[Round "6.3"]
[White "Guichard, Pauline"]
[Black "Khotenashvili, Bella"]
[Result "0-1"]
[ECO "A50"]
[WhiteElo "2385"]
[BlackElo "2467"]
[Annotator "RC"]
[PlyCount "68"]
[EventDate "2023.12.19"]
[EventType "swiss"]
[EventCountry "MNC"]
[SourceTitle "playchess.com"]
[Source "ChessBase"]
[SourceQuality "1"]
[TimeControl "900+10"]

1. d4 {[%emt 0:00:02]} Nf6 {[%emt 0:00:03]} 2. c4 {[%emt 0:00:02]} b6 {[%emt 0:00:03]} 3. Nc3 {[%emt 0:00:07]} Bb7 {[%emt 0:00:01]} 4. d5 {[%emt 0:00:05]} e6 {[%emt 0:00:13]} 5. a3 {[%emt 0:00:03]} exd5 {[%emt 0:01:30]} 6. cxd5 {[%emt 0:00:04]} c6 {[%emt 0:00:02]} 7. g3 {[%emt 0:00:21]} cxd5 {[%emt 0:00:58]} 8. Bg2 {[%emt 0:00:02]} Na6 {[%emt 0:00:01]} 9. b4 {[%emt 0:00:41]} Nc7 {[%emt 0:00:16]} 10. Nf3 {[%emt 0:01:29]} a5 {[%emt 0:03:04]} 11. Rb1 {[%emt 0:01:55]} axb4 {[%emt 0:00:06]} 12. axb4 {[%emt 0:00:01]} Ne6 {[%emt 0:02:50]} 13. O-O {[%emt 0:00:25]} Be7 {[%emt 0:02:20]} 14. Be3 {[%emt 0:02:49]} O-O {[%emt 0:00:21]} 15. Qb3 {[%emt 0:00:16]} Bc6 {[%emt 0:03:10]} 16. Ra1 {[%emt 0:01:10]} Qc7 {[%emt 0:00:24]} 17. Rfc1 {[%emt 0:00:35]} Qd6 {[%emt 0:00:53]} 18. b5 {[%emt 0:02:59]} Bb7 {[%emt 0:00:32]} 19. Nd4 {[%emt 0:00:05]} Nxd4 {[%emt 0:00:11]} 20. Bxd4 {[%emt 0:00:02]} Ne4 {[%emt 0:00:10]} 21. Qb2 {[%emt 0:02:11]} Nxc3 {[%emt 0:00:39]} 22. Qxc3 {[%emt 0:00:02]} Rxa1 {[%emt 0:00:16]} 23. Rxa1 {[%emt 0:00:06]} Rc8 {[%emt 0:00:03]} 24. Qe3 {[%emt 0:01:35]} Bf6 {[%emt 0:00:15]} 25. Ra7 {[%emt 0:00:02]} Bxd4 {[%emt 0:00:19]} 26. Qxd4 {[%emt 0:00:01]} Rc1+ {[%emt 0:00:08]} 27. Bf1 {[%emt 0:00:01]} Rc7 {[%emt 0:00:05]} 28. h4 {[%emt 0:00:38]} h6 {[%emt 0:00:20]} 29. Bg2 {[%emt 0:00:01]} Kh7 {[%emt 0:00:27]} 30. Be4+ {[%emt 0:00:41]} g6 {[%emt 0:00:02]} 31. Bd3 {[%emt 0:00:03]} Bc8 {[%emt 0:00:07]} 32. Ra8 {[%emt 0:00:22]} h5 {[%emt 0:00:03]} 33. Rb8 {[%emt 0:00:09]} Rc1+ {[%emt 0:00:01]} 34. Kg2 {[%emt 0:00:03]} Qxb8 {[%emt 0:00:02]} 0-1

[Event "European Women Rapid-ch 2023"]
[Site "Monaco"]
[Date "2024.01.14"]
[Round "6.4"]
[White "Hrebenshchykova, Yelyzaveta"]
[Black "Paehtz, Elisabeth"]
[Result "0-1"]
[ECO "B92"]
[WhiteElo "2275"]
[BlackElo "2461"]
[Annotator "RC"]
[PlyCount "86"]
[EventDate "2023.12.19"]
[EventType "swiss"]
[EventCountry "MNC"]
[SourceTitle "playchess.com"]
[Source "ChessBase"]
[SourceQuality "1"]
[TimeControl "900+10"]

1. e4 {[%emt 0:00:01]} c5 {[%emt 0:00:01]} 2. Nf3 {[%emt 0:00:02]} d6 {[%emt 0:00:01]} 3. Nc3 {[%emt 0:00:23]} Nf6 {[%emt 0:00:02]} 4. d4 {[%emt 0:00:24]} cxd4 {[%emt 0:00:01]} 5. Nxd4 {[%emt 0:00:02]} a6 {[%emt 0:00:02]} 6. Be2 {[%emt 0:00:11]} e5 {[%emt 0:00:01]} 7. Nf3 {[%emt 0:00:01]} h6 {[%emt 0:00:04]} 8. Bc4 {[%emt 0:01:26]} Be7 {[%emt 0:00:32]} 9. a4 {[%emt 0:00:29]} Nc6 {[%emt 0:00:10]} 10. O-O {[%emt 0:00:40]} O-O {[%emt 0:00:26]} 11. Re1 {[%emt 0:01:33]} Be6 {[%emt 0:00:39]} 12. Bd5 {[%emt 0:00:39]} Rc8 {[%emt 0:00:13]} 13. h3 {[%emt 0:01:05]} Bxd5 {[%emt 0:00:20]} 14. Nxd5 {[%emt 0:00:13]} Nxd5 {[%emt 0:00:02]} 15. exd5 {[%emt 0:00:01]} Nb8 {[%emt 0:00:03]} 16. b3 {[%emt 0:01:49]} Nd7 {[%emt 0:00:14]} 17. c4 {[%emt 0:00:08]} a5 {[%emt 0:00:18]} 18. Ba3 {[%emt 0:00:42]} Qc7 {[%emt 0:01:36]} 19. Nd4 {[%emt 0:00:27]} Rfe8 {[%emt 0:00:17]} 20. Nf5 {[%emt 0:00:41]} Bf8 {[%emt 0:00:51]} 21. Qg4 {[%emt 0:00:16]} g6 {[%emt 0:00:01]} 22. Re3 {[%emt 0:02:17]} Nc5 {[%emt 0:00:34]} 23. Rae1 {[%emt 0:00:26]} Kh7 {[%emt 0:01:26]} 24. Bxc5 {[%emt 0:01:04]} Qxc5 {[%emt 0:00:05]} 25. Rg3 {[%emt 0:01:16]} Qc7 {[%emt 0:01:00]} 26. Ree3 {[%emt 0:00:01]} Rcd8 {[%emt 0:00:58]} 27. h4 {[%emt 0:01:54]} Qd7 {[%emt 0:00:12]} 28. Ref3 {[%emt 0:00:01]} h5 {[%emt 0:00:19]} 29. Qh3 {[%emt 0:01:13]} e4 {[%emt 0:00:17]} 30. Rf4 {[%emt 0:00:00]} Re5 {[%emt 0:00:07]} 31. Nd4 {[%emt 0:00:14]} Bh6 {[%emt 0:00:29]} 32. Rf6 {[%emt 0:00:34]} Qe7 {[%emt 0:00:32]} 33. Re6 fxe6 {[%emt 0:00:04]} 34. Nxe6 {[%emt 0:00:15]} Re8 {[%emt 0:00:22]} 35. Rc3 {[%emt 0:00:12]} Rxe6 {[%emt 0:00:41]} 36. dxe6 {[%emt 0:00:01]} Qxe6 {[%emt 0:00:01]} 37. Qg3 {[%emt 0:00:24]} Bg7 {[%emt 0:00:14]} 38. Re3 {[%emt 0:00:04]} Bd4 {[%emt 0:00:06]} 39. Re2 {[%emt 0:00:10]} Qe5 {[%emt 0:00:14]} 40. Qh3 {[%emt 0:00:08]} Qf5 {[%emt 0:00:02]} 41. Qg3 {[%emt 0:00:05]} Bc5 {[%emt 0:00:14]} 42. Kh2 {[%emt 0:00:21]} Qe5 {[%emt 0:00:20]} 43. f4 {[%emt 0:00:04]} Qf5 {[%emt 0:00:04]} 0-1

[Event "European Women Rapid-ch 2023"]
[Site "Monaco"]
[Date "2024.01.14"]
[Round "6.5"]
[White "Papp, Petra"]
[Black "Hunt, Harriet V"]
[Result "1-0"]
[ECO "B35"]
[WhiteElo "2267"]
[BlackElo "2306"]
[Annotator "RC"]
[PlyCount "109"]
[EventDate "2023.12.19"]
[EventType "swiss"]
[EventCountry "MNC"]
[SourceTitle "playchess.com"]
[Source "ChessBase"]
[SourceQuality "1"]
[TimeControl "900+10"]

1. e4 {[%emt 0:00:01]} c5 {[%emt 0:00:02]} 2. Nc3 {[%emt 0:00:06]} Nc6 {[%emt 0:00:09]} 3. Nge2 {[%emt 0:00:53]} g6 {[%emt 0:00:51]} 4. d4 {[%emt 0:00:03]} cxd4 {[%emt 0:00:01]} 5. Nxd4 {[%emt 0:00:01]} Bg7 {[%emt 0:00:02]} 6. Be3 {[%emt 0:00:01]} Nf6 {[%emt 0:00:20]} 7. Bc4 {[%emt 0:00:05]} O-O {[%emt 0:01:22]} 8. Bb3 {[%emt 0:00:02]} Qa5 {[%emt 0:02:36]} 9. f3 {[%emt 0:01:02]} Rb8 {[%emt 0:01:30]} 10. Qd2 {[%emt 0:00:53]} Nxd4 {[%emt 0:00:37]} 11. Bxd4 {[%emt 0:00:05]} b5 {[%emt 0:00:12]} 12. O-O-O {[%emt 0:02:52]} Bb7 {[%emt 0:01:27]} 13. Kb1 {[%emt 0:00:46]} b4 {[%emt 0:00:22]} 14. Nd5 {[%emt 0:00:48]} Bxd5 {[%emt 0:00:25]} 15. exd5 {[%emt 0:00:20]} d6 {[%emt 0:00:34]} 16. h4 {[%emt 0:01:11]} Qc7 {[%emt 0:02:05]} 17. g4 {[%emt 0:00:47]} a5 {[%emt 0:00:06]} 18. h5 {[%emt 0:00:43]} Ra8 {[%emt 0:01:30]} 19. Ba4 {[%emt 0:00:48]} Rfb8 {[%emt 0:00:54]} 20. hxg6 {[%emt 0:00:53]} fxg6 {[%emt 0:00:04]} 21. Rde1 {[%emt 0:01:09]} Rf8 {[%emt 0:00:29]} 22. Qe2 {[%emt 0:01:47]} Rf7 {[%emt 0:00:04]} 23. Qe6 {[%emt 0:01:15]} Qc8 {[%emt 0:00:21]} 24. Bc6 {[%emt 0:00:27]} Rb8 {[%emt 0:00:01]} 25. Ba7 {[%emt 0:00:41]} Qxe6 {[%emt 0:00:17]} 26. dxe6 {[%emt 0:00:04]} Rff8 {[%emt 0:00:01]} 27. Bxb8 {[%emt 0:00:04]} Rxb8 {[%emt 0:00:01]} 28. Rd1 {[%emt 0:00:47]} Rb6 {[%emt 0:00:16]} 29. Ba4 {[%emt 0:00:12]} h6 {[%emt 0:00:50]} 30. Rhe1 {[%emt 0:00:11]} Rb8 {[%emt 0:00:18]} 31. Rd3 {[%emt 0:00:14]} Rc8 {[%emt 0:00:10]} 32. Bb3 {[%emt 0:00:35]} Rc5 {[%emt 0:00:04]} 33. c3 {[%emt 0:00:15]} bxc3 {[%emt 0:00:57]} 34. Rxc3 {[%emt 0:00:00]} Rxc3 {[%emt 0:00:08]} 35. bxc3 {[%emt 0:00:01]} Ne8 {[%emt 0:00:10]} 36. f4 {[%emt 0:00:30]} Nc7 {[%emt 0:00:08]} 37. f5 {[%emt 0:00:01]} gxf5 {[%emt 0:00:22]} 38. gxf5 {[%emt 0:00:01]} Bf6 {[%emt 0:00:11]} 39. a4 {[%emt 0:00:09]} h5 {[%emt 0:00:13]} 40. Bd1 {[%emt 0:00:43]} h4 {[%emt 0:00:01]} 41. Kc2 {[%emt 0:00:03]} Nd5 {[%emt 0:00:13]} 42. Rg1+ {[%emt 0:00:12]} Kf8 {[%emt 0:00:02]} 43. Kd3 {[%emt 0:00:18]} Nxc3 {[%emt 0:00:22]} 44. Bb3 {[%emt 0:00:17]} d5 {[%emt 0:00:54]} 45. Rh1 {[%emt 0:00:10]} d4 {[%emt 0:00:06]} 46. Rg1 {[%emt 0:00:09]} Be5 {[%emt 0:00:09]} 47. Rg6 {[%emt 0:00:09]} h3 {[%emt 0:00:21]} 48. Rh6 {[%emt 0:00:08]} h2 {[%emt 0:00:02]} 49. f6 {[%emt 0:00:08]} Bxf6 {[%emt 0:00:18]} 50. Rxh2 {[%emt 0:00:01]} Kg7 {[%emt 0:00:04]} 51. Rg2+ {[%emt 0:00:03]} Kh6 {[%emt 0:00:04]} 52. Rg8 {[%emt 0:00:06]} Be5 {[%emt 0:00:31]} 53. Ra8 {[%emt 0:00:13]} Bc7 {[%emt 0:00:04]} 54. Ra7 {[%emt 0:00:07]} Bd6 {[%emt 0:00:22]} 55. Rxa5 {[%emt 0:00:04]} 1-0

[Event "European Women Rapid-ch 2023"]
[Site "Monaco"]
[Date "2024.01.14"]
[Round "6.6"]
[White "Krasteva, Beloslava"]
[Black "Ushenina, Anna"]
[Result "0-1"]
[ECO "D37"]
[WhiteElo "2251"]
[BlackElo "2415"]
[Annotator "RC"]
[PlyCount "124"]
[EventDate "2023.12.19"]
[EventType "swiss"]
[EventCountry "MNC"]
[SourceTitle "playchess.com"]
[Source "ChessBase"]
[SourceQuality "1"]
[TimeControl "900+10"]

1. d4 {[%emt 0:00:02]} d5 {[%emt 0:00:04]} 2. c4 {[%emt 0:00:10]} e6 {[%emt 0:00:05]} 3. Nc3 {[%emt 0:00:03]} a6 {[%emt 0:00:09]} 4. cxd5 {[%emt 0:00:12]} exd5 {[%emt 0:00:01]} 5. Nf3 {[%emt 0:00:02]} Nf6 {[%emt 0:00:05]} 6. Bg5 {[%emt 0:00:06]} Be6 {[%emt 0:00:05]} 7. e3 {[%emt 0:00:03]} Nbd7 {[%emt 0:00:02]} 8. Bd3 {[%emt 0:00:04]} Bd6 {[%emt 0:00:16]} 9. O-O {[%emt 0:00:21]} c6 {[%emt 0:00:04]} 10. Bf4 {[%emt 0:00:08]} Qc7 {[%emt 0:00:02]} 11. Qd2 {[%emt 0:00:11]} h6 {[%emt 0:00:01]} 12. Rab1 {[%emt 0:00:51]} Bg4 {[%emt 0:03:06]} 13. Bxd6 {[%emt 0:01:37]} Qxd6 {[%emt 0:00:02]} 14. Nh4 {[%emt 0:00:57]} O-O {[%emt 0:00:32]} 15. h3 {[%emt 0:01:08]} Be6 {[%emt 0:00:02]} 16. Rfc1 {[%emt 0:00:21]} Nb6 {[%emt 0:01:31]} 17. Nf3 {[%emt 0:00:11]} Rfe8 {[%emt 0:00:47]} 18. Ne5 {[%emt 0:01:24]} Nfd7 {[%emt 0:00:06]} 19. f4 {[%emt 0:00:44]} f6 {[%emt 0:01:29]} 20. Nf3 {[%emt 0:01:31]} Nf8 {[%emt 0:00:13]} 21. Ne2 {[%emt 0:01:14]} Qd7 {[%emt 0:00:33]} 22. Ng3 {[%emt 0:01:14]} Nc8 {[%emt 0:00:01]} 23. f5 {[%emt 0:02:48]} Bf7 {[%emt 0:00:04]} 24. b3 {[%emt 0:00:35]} Nd6 {[%emt 0:00:08]} 25. Re1 {[%emt 0:00:12]} Re7 {[%emt 0:00:20]} 26. Rbd1 {[%emt 0:01:44]} Rae8 {[%emt 0:00:16]} 27. Kf2 {[%emt 0:00:02]} Kh8 {[%emt 0:01:58]} 28. Qc2 {[%emt 0:00:01]} Bg8 {[%emt 0:00:35]} 29. Nh5 {[%emt 0:00:28]} Bf7 {[%emt 0:00:28]} 30. Nf4 {[%emt 0:00:12]} Ne4+ {[%emt 0:00:18]} 31. Bxe4 {[%emt 0:00:05]} Rxe4 {[%emt 0:00:02]} 32. g4 {[%emt 0:00:10]} Qd6 {[%emt 0:00:31]} 33. Qd2 {[%emt 0:00:47]} Nd7 {[%emt 0:00:02]} 34. Rc1 {[%emt 0:00:16]} Nb6 {[%emt 0:00:08]} 35. Nd3 {[%emt 0:00:06]} R4e7 {[%emt 0:00:13]} 36. Nc5 {[%emt 0:00:05]} Nc8 {[%emt 0:00:06]} 37. a4 {[%emt 0:00:27]} Qc7 {[%emt 0:00:02]} 38. a5 {[%emt 0:00:04]} Nd6 {[%emt 0:00:01]} 39. Qb4 {[%emt 0:00:18]} Ne4+ {[%emt 0:00:25]} 40. Nxe4 {[%emt 0:00:08]} dxe4 {[%emt 0:00:06]} 41. Ng1 {[%emt 0:00:06]} Qh2+ {[%emt 0:00:34]} 42. Kf1 {[%emt 0:00:01]} Qg3 {[%emt 0:00:05]} 43. Rc2 {[%emt 0:00:25]} h5 {[%emt 0:00:25]} 44. Rg2 {[%emt 0:00:01]} Qh4 {[%emt 0:00:05]} 45. Qc3 {[%emt 0:00:16]} c5 {[%emt 0:00:23]} 46. dxc5 {[%emt 0:00:17]} Rd7 {[%emt 0:00:04]} 47. b4 {[%emt 0:00:26]} Rd3 {[%emt 0:00:05]} 48. Qc1 {[%emt 0:00:14]} Red8 {[%emt 0:00:07]} 49. c6 {[%emt 0:00:10]} bxc6 {[%emt 0:00:17]} 50. Qxc6 {[%emt 0:00:01]} Rd2 {[%emt 0:00:40]} 51. Qc3 {[%emt 0:00:23]} Bc4+ {[%emt 0:01:22]} 52. Ne2 {[%emt 0:00:02]} Bb5 {[%emt 0:00:05]} 53. gxh5 {[%emt 0:00:21]} Rxe2 {[%emt 0:01:05]} 54. Rgxe2 {[%emt 0:00:11]} Qxh3+ {[%emt 0:00:03]} 55. Kg1 {[%emt 0:00:05]} Bxe2 {[%emt 0:00:04]} 56. Rxe2 {[%emt 0:00:03]} Qg3+ {[%emt 0:00:15]} 57. Kf1 {[%emt 0:00:07]} Qf3+ {[%emt 0:00:53]} 58. Ke1 {[%emt 0:00:12]} Qh1+ {[%emt 0:00:02]} 59. Kf2 {[%emt 0:00:01]} Qh2+ {[%emt 0:00:04]} 60. Kf1 {[%emt 0:00:12]} Rd1+ {[%emt 0:00:06]} 61. Re1 {[%emt 0:00:04]} Rd2 {[%emt 0:00:14]} 62. Qc8+ {[%emt 0:00:33]} Kh7 {[%emt 0:00:00]} 0-1

[Event "European Women Rapid-ch 2023"]
[Site "Monaco"]
[Date "2024.01.14"]
[Round "6.7"]
[White "Wagner, Dinara"]
[Black "Hryshchenko, Kamila"]
[Result "1/2-1/2"]
[ECO "E63"]
[WhiteElo "2459"]
[BlackElo "2192"]
[Annotator "RC"]
[PlyCount "116"]
[EventDate "2023.12.19"]
[EventType "swiss"]
[EventCountry "MNC"]
[SourceTitle "playchess.com"]
[Source "ChessBase"]
[SourceQuality "1"]
[TimeControl "900+10"]

1. d4 {[%emt 0:00:02]} d6 {[%emt 0:00:01]} 2. Nf3 {[%emt 0:00:02]} g6 {[%emt 0:00:02]} 3. c4 {[%emt 0:00:02]} Bg7 {[%emt 0:00:02]} 4. Nc3 {[%emt 0:00:02]} Nf6 {[%emt 0:00:01]} 5. g3 {[%emt 0:00:03]} O-O {[%emt 0:00:03]} 6. Bg2 {[%emt 0:00:01]} Nc6 {[%emt 0:00:04]} 7. O-O {[%emt 0:00:05]} a6 {[%emt 0:00:04]} 8. b3 {[%emt 0:00:24]} Rb8 {[%emt 0:00:15]} 9. Bb2 {[%emt 0:00:03]} Bd7 {[%emt 0:01:02]} 10. Rc1 {[%emt 0:02:00]} Qc8 {[%emt 0:02:38]} 11. Re1 {[%emt 0:00:34]} Bg4 {[%emt 0:00:26]} 12. Qd2 {[%emt 0:00:36]} Rd8 {[%emt 0:01:29]} 13. d5 {[%emt 0:00:36]} Ne5 {[%emt 0:00:23]} 14. Nxe5 {[%emt 0:01:09]} dxe5 {[%emt 0:00:02]} 15. e4 {[%emt 0:00:01]} h5 {[%emt 0:01:25]} 16. Na4 {[%emt 0:01:36]} Nh7 {[%emt 0:01:49]} 17. h4 {[%emt 0:00:50]} Bf6 {[%emt 0:01:54]} 18. Nc5 {[%emt 0:01:24]} g5 {[%emt 0:01:43]} 19. hxg5 {[%emt 0:00:24]} Bxg5 {[%emt 0:00:06]} 20. f4 {[%emt 0:00:04]} exf4 {[%emt 0:01:59]} 21. gxf4 {[%emt 0:00:01]} Bh6 {[%emt 0:00:12]} 22. Qd4 {[%emt 0:01:10]} f6 {[%emt 0:00:08]} 23. e5 {[%emt 0:00:27]} Qf5 {[%emt 0:01:38]} 24. Ne6 {[%emt 0:00:10]} Qxe6 {[%emt 0:01:06]} 25. dxe6 {[%emt 0:00:01]} Rxd4 {[%emt 0:00:01]} 26. Bxd4 {[%emt 0:00:02]} Bxf4 {[%emt 0:00:02]} 27. exf6 {[%emt 0:02:17]} Bxc1 {[%emt 0:00:02]} 28. Rxc1 {[%emt 0:00:01]} Nxf6 {[%emt 0:00:32]} 29. Re1 {[%emt 0:00:02]} c6 {[%emt 0:00:13]} 30. Bb6 {[%emt 0:01:10]} Kg7 {[%emt 0:00:12]} 31. Kf2 {[%emt 0:00:20]} Kg6 {[%emt 0:00:20]} 32. Re5 {[%emt 0:00:12]} Bf5 {[%emt 0:00:15]} 33. Kg3 {[%emt 0:01:39]} Rg8 {[%emt 0:00:01]} 34. Re1 {[%emt 0:00:21]} Bxe6 {[%emt 0:00:04]} 35. Kf4 {[%emt 0:00:42]} Kf7 {[%emt 0:00:09]} 36. Bf3 {[%emt 0:00:01]} Bg4 {[%emt 0:00:21]} 37. Bc5 {[%emt 0:00:15]} e6 {[%emt 0:00:01]} 38. Bh1 {[%emt 0:00:15]} Bf5 {[%emt 0:00:05]} 39. Bf3 {[%emt 0:00:01]} h4 {[%emt 0:00:06]} 40. b4 {[%emt 0:01:09]} h3 {[%emt 0:00:02]} 41. a4 {[%emt 0:00:21]} Rd8 {[%emt 0:00:06]} 42. b5 {[%emt 0:00:47]} axb5 {[%emt 0:00:02]} 43. cxb5 {[%emt 0:00:04]} cxb5 {[%emt 0:00:07]} 44. axb5 {[%emt 0:00:01]} b6 {[%emt 0:00:10]} 45. Bf2 {[%emt 0:00:34]} Rd2 {[%emt 0:00:34]} 46. Kg3 {[%emt 0:00:06]} Nd5 {[%emt 0:00:11]} 47. Ra1 {[%emt 0:00:24]} Rb2 {[%emt 0:00:29]} 48. Bh5+ {[%emt 0:00:01]} Ke7 {[%emt 0:00:16]} 49. Bd4 {[%emt 0:00:27]} Rb3+ {[%emt 0:00:04]} 50. Kh2 {[%emt 0:00:02]} Nf4 {[%emt 0:00:20]} 51. Ra7+ {[%emt 0:00:14]} Kd6 {[%emt 0:00:01]} 52. Be8 {[%emt 0:00:06]} Kd5 {[%emt 0:00:04]} 53. Bxb6 {[%emt 0:00:12]} Rb2+ {[%emt 0:00:05]} 54. Kg3 {[%emt 0:00:02]} Ne2+ {[%emt 0:00:32]} 55. Kf3 {[%emt 0:00:02]} h2 {[%emt 0:00:03]} 56. Bc6+ Kc4 57. Ke3 {[%emt 0:00:05]} Rb1 {[%emt 0:00:08]} 58. Ra1 Rb2 {[%emt 0:00:02]} 1/2-1/2